[Event "Live Chess"]
[Site "Chess.com"]
[Date "2023.05.21"]
[Round "-"]
[White "matt1979"]
[Black "Fazer180"]
[Result "1-0"]
[WhiteElo "1484"]
[BlackElo "1745"]
[TimeControl "300"]
[EndTime "20:35:24 PDT"]
[Termination "matt1979 won by checkmate"]

1. f4 {[%clk 0:04:58.6]} 1... d5 {[%clk 0:04:57.7]} 2. e3 {[%clk 0:04:57.2]}
2... c5 {[%clk 0:04:56.3]} 3. Nf3 {[%clk 0:04:55.6]} 3... Nc6 {[%clk 0:04:55.4]}
4. Bb5 {[%clk 0:04:54]} 4... e6 {[%clk 0:04:53.2]} 5. O-O {[%clk 0:04:51.8]}
5... Bd6 {[%clk 0:04:49.4]} 6. b3 {[%clk 0:04:43.2]} 6... Nf6 {[%clk 0:04:46.4]}
7. Bb2 {[%clk 0:04:42]} 7... O-O {[%clk 0:04:44]} 8. Bxc6 {[%clk 0:04:40.7]}
8... bxc6 {[%clk 0:04:42.6]} 9. Ne5 {[%clk 0:04:39.5]} 9... Qc7 {[%clk
0:04:24.5]} 10. Qe1 {[%clk 0:04:35.1]} 10... Ba6 {[%clk 0:04:21.9]} 11. d3
{[%clk 0:04:31.1]} 11... Nd7 {[%clk 0:04:13.7]} 12. Nxd7 {[%clk 0:04:24.1]}
12... Qxd7 {[%clk 0:04:12.9]} 13. Qg3 {[%clk 0:04:19.7]} 13... f6 {[%clk
0:04:12.1]} 14. Nd2 {[%clk 0:04:14.5]} 14... Rab8 {[%clk 0:04:03.6]} 15. Qh4
{[%clk 0:04:06.8]} 15... c4 {[%clk 0:03:57]} 16. Bc3 {[%clk 0:03:53.9]} 16...
cxd3 {[%clk 0:03:52.4]} 17. cxd3 {[%clk 0:03:52.2]} 17... Bxd3 {[%clk
0:03:50.8]} 18. Rf3 {[%clk 0:03:49.8]} 18... e5 {[%clk 0:03:33.9]} 19. fxe5
{[%clk 0:03:40]} 19... Bxe5 {[%clk 0:03:33]} 20. Bxe5 {[%clk 0:03:36.6]} 20...
fxe5 {[%clk 0:03:30.7]} 21. Rh3 {[%clk 0:03:24.7]} 21... Qf7 {[%clk 0:03:16.8]}
22. Nf3 {[%clk 0:03:10.5]} 22... e4 {[%clk 0:03:07.6]} 23. Qxh7# {[%clk
0:03:07.8]} 1-0

[Event "Live Chess"]
[Site "Chess.com"]
[Date "2023.05.21"]
[Round "-"]
[White "mirandaasilva"]
[Black "chessfiction"]
[Result "0-1"]
[WhiteElo "1694"]
[BlackElo "2336"]
[TimeControl "300"]
[EndTime "20:36:16 PDT"]
[Termination "chessfiction won by resignation"]

1. Nf3 {[%clk 0:04:56.7]} 1... e5 {[%clk 0:04:59.9]} 2. Nxe5 {[%clk 0:04:54.5]}
2... Nc6 {[%clk 0:04:57.9]} 3. Nf3 {[%clk 0:04:54.4]} 3... g5 {[%clk 0:04:56.1]}
4. g3 {[%clk 0:04:54.3]} 4... g4 {[%clk 0:04:55.1]} 5. Ng1 {[%clk 0:04:52.3]}
5... h5 {[%clk 0:04:53.5]} 6. e4 {[%clk 0:04:51]} 6... Bc5 {[%clk 0:04:52.3]} 7.
c3 {[%clk 0:04:47.4]} 7... Qf6 {[%clk 0:04:50.5]} 8. d4 {[%clk 0:04:45.7]} 8...
Nxd4 {[%clk 0:04:48]} 9. cxd4 {[%clk 0:03:38.9]} 9... Bxd4 {[%clk 0:04:47.9]}
10. Qc2 {[%clk 0:03:25.3]} 10... h4 {[%clk 0:04:41.5]} 11. Nc3 {[%clk
0:02:57.9]} 11... hxg3 {[%clk 0:04:40.2]} 12. fxg3 {[%clk 0:02:51.8]} 12... Ne7
{[%clk 0:04:32.1]} 13. Bf4 {[%clk 0:02:32.6]} 13... c6 {[%clk 0:04:16.1]} 14.
O-O-O {[%clk 0:02:24.2]} 14... d5 {[%clk 0:04:14.9]} 15. Nge2 {[%clk 0:02:09.9]}
15... Bb6 {[%clk 0:04:10.5]} 16. exd5 {[%clk 0:01:53.2]} 16... Bf5 {[%clk
0:04:09.5]} 17. Qd2 {[%clk 0:01:50.9]} 17... O-O-O {[%clk 0:04:06.5]} 18. Bg2
{[%clk 0:01:32.7]} 18... Bh7 {[%clk 0:04:03]} 19. Rhf1 {[%clk 0:01:26.9]} 19...
Nf5 {[%clk 0:03:26.1]} 20. dxc6 {[%clk 0:00:54.5]} 20... bxc6 {[%clk 0:03:13.7]}
21. Qd3 {[%clk 0:00:47.4]} 21... Rxd3 {[%clk 0:03:11.1]} 22. Rxd3 {[%clk
0:00:42.8]} 22... Nd4 {[%clk 0:03:07.1]} 0-1

[Event "Live Chess"]
[Site "Chess.com"]
[Date "2023.05.21"]
[Round "-"]
[White "LiamBellwood"]
[Black "KeithArkell"]
[Result "0-1"]
[WhiteElo "2006"]
[BlackElo "2571"]
[TimeControl "300"]
[EndTime "20:36:19 PDT"]
[Termination "KeithArkell won by resignation"]

1. d4 {[%clk 0:04:59.5]} 1... b5 {[%clk 0:04:55.5]} 2. Nf3 {[%clk 0:04:52.2]}
2... Bb7 {[%clk 0:04:54.3]} 3. e3 {[%clk 0:04:51.5]} 3... a6 {[%clk 0:04:52.8]}
4. b3 {[%clk 0:04:48.4]} 4... b4 {[%clk 0:04:50.7]} 5. Bb2 {[%clk 0:04:47.6]}
5... Nf6 {[%clk 0:04:49.1]} 6. Nbd2 {[%clk 0:04:47]} 6... e6 {[%clk 0:04:48.4]}
7. a3 {[%clk 0:04:45]} 7... a5 {[%clk 0:04:47.5]} 8. axb4 {[%clk 0:04:42.2]}
8... axb4 {[%clk 0:04:47.4]} 9. Rxa8 {[%clk 0:04:40.5]} 9... Bxa8 {[%clk
0:04:47.3]} 10. Bd3 {[%clk 0:04:30.1]} 10... c5 {[%clk 0:04:46.1]} 11. O-O
{[%clk 0:04:24.6]} 11... cxd4 {[%clk 0:04:44.3]} 12. Bxd4 {[%clk 0:04:10.7]}
12... Nc6 {[%clk 0:04:42.5]} 13. Bb2 {[%clk 0:04:01.5]} 13... Be7 {[%clk
0:04:40.7]} 14. Nc4 {[%clk 0:03:51.6]} 14... O-O {[%clk 0:04:39.3]} 15. Be2
{[%clk 0:03:46.4]} 15... d5 {[%clk 0:04:37.2]} 16. Nce5 {[%clk 0:03:44.4]} 16...
Nxe5 {[%clk 0:04:36.4]} 17. Nxe5 {[%clk 0:03:44.3]} 17... Qb6 {[%clk 0:04:32.3]}
18. Bf3 {[%clk 0:03:33]} 18... Bb7 {[%clk 0:04:30.3]} 19. Bd4 {[%clk 0:03:18.6]}
19... Bc5 {[%clk 0:04:28.3]} 20. Bxc5 {[%clk 0:02:58.1]} 20... Qxc5 {[%clk
0:04:26.9]} 21. Nd3 {[%clk 0:02:50.7]} 21... Qc3 {[%clk 0:04:25.1]} 22. Qe1
{[%clk 0:02:31.8]} 22... Ba6 {[%clk 0:04:17.3]} 23. Nxb4 {[%clk 0:02:17.7]}
23... Qxe1 {[%clk 0:04:03.1]} 24. Rxe1 {[%clk 0:02:16.6]} 24... Bb5 {[%clk
0:04:01.7]} 25. c4 {[%clk 0:01:59.7]} 25... dxc4 {[%clk 0:04:00.2]} 26. bxc4
{[%clk 0:01:59.6]} 26... Bxc4 {[%clk 0:03:59.4]} 27. Nc6 {[%clk 0:01:58]} 27...
Re8 {[%clk 0:03:55.2]} 28. Rc1 {[%clk 0:01:50.6]} 28... Bd5 {[%clk 0:03:53.8]}
29. Bxd5 {[%clk 0:01:47]} 29... Nxd5 {[%clk 0:03:52.8]} 30. Ne5 {[%clk
0:01:41.4]} 30... g5 {[%clk 0:03:50.1]} 31. e4 {[%clk 0:01:31.4]} 31... Nf4
{[%clk 0:03:38.7]} 32. Kf1 {[%clk 0:01:25]} 32... Re7 {[%clk 0:03:32.7]} 33. g3
{[%clk 0:01:14.9]} 33... Nh5 {[%clk 0:03:30.2]} 34. Rd1 {[%clk 0:01:06.8]} 34...
Nf6 {[%clk 0:03:27.7]} 35. f3 {[%clk 0:00:54.8]} 35... h5 {[%clk 0:03:26.7]} 36.
Kf2 {[%clk 0:00:52.7]} 36... g4 {[%clk 0:03:15.5]} 37. Ke3 {[%clk 0:00:47.2]}
37... gxf3 {[%clk 0:03:14.5]} 38. Nxf3 {[%clk 0:00:47.1]} 38... Ra7 {[%clk
0:03:10.4]} 39. h3 {[%clk 0:00:39.5]} 39... Kg7 {[%clk 0:03:05.4]} 40. Rg1
{[%clk 0:00:37]} 40... Ra3+ {[%clk 0:03:02.5]} 41. Kf4 {[%clk 0:00:36.5]} 41...
Ra4 {[%clk 0:02:59.6]} 42. Re1 {[%clk 0:00:31.7]} 42... Nh7 {[%clk 0:02:45.7]}
43. h4 {[%clk 0:00:28.6]} 43... f6 {[%clk 0:02:44.3]} 44. Ke3 {[%clk 0:00:22]}
44... Nf8 {[%clk 0:02:41.9]} 45. Rg1 {[%clk 0:00:19.5]} 45... Ra3+ {[%clk
0:02:39.2]} 46. Kf4 {[%clk 0:00:17.9]} 46... e5+ {[%clk 0:02:36.3]} 0-1

[Event "Live Chess"]
[Site "Chess.com"]
[Date "2023.05.21"]
[Round "-"]
[White "manthanit"]
[Black "raminguy"]
[Result "0-1"]
[WhiteElo "1082"]
[BlackElo "1951"]
[TimeControl "300"]
[EndTime "20:36:40 PDT"]
[Termination "raminguy won by checkmate"]

1. e4 {[%clk 0:04:58]} 1... e5 {[%clk 0:04:57.9]} 2. d3 {[%clk 0:04:56.5]} 2...
Nf6 {[%clk 0:04:55.7]} 3. Nf3 {[%clk 0:04:56.1]} 3... Nc6 {[%clk 0:04:54.3]} 4.
h3 {[%clk 0:04:55.4]} 4... d5 {[%clk 0:04:53.3]} 5. Be2 {[%clk 0:04:55]} 5...
dxe4 {[%clk 0:04:51.9]} 6. dxe4 {[%clk 0:04:54.3]} 6... Qxd1+ {[%clk 0:04:50.7]}
7. Bxd1 {[%clk 0:04:52.6]} 7... Nxe4 {[%clk 0:04:50.1]} 8. O-O {[%clk
0:04:50.8]} 8... Bc5 {[%clk 0:04:48.4]} 9. Re1 {[%clk 0:04:49.7]} 9... Bxf2+
{[%clk 0:04:46.8]} 10. Kf1 {[%clk 0:04:46.9]} 10... Bxe1 {[%clk 0:04:46.7]} 11.
Kxe1 {[%clk 0:04:46.4]} 11... O-O {[%clk 0:04:45.1]} 12. Nc3 {[%clk 0:04:33.7]}
12... Nxc3 {[%clk 0:04:43.2]} 13. bxc3 {[%clk 0:04:33.3]} 13... f5 {[%clk
0:04:38.4]} 14. c4 {[%clk 0:04:23.5]} 14... e4 {[%clk 0:04:36]} 15. Nh2 {[%clk
0:04:16.2]} 15... Ne5 {[%clk 0:04:32.6]} 16. c3 {[%clk 0:04:12.3]} 16... Nxc4
{[%clk 0:04:30.8]} 17. Bb3 {[%clk 0:04:11.8]} 17... Be6 {[%clk 0:04:29.5]} 18.
Bf4 {[%clk 0:04:09.7]} 18... c6 {[%clk 0:04:27.3]} 19. Rd1 {[%clk 0:04:02.8]}
19... Rad8 {[%clk 0:04:24.7]} 20. Rxd8 {[%clk 0:04:00.3]} 20... Rxd8 {[%clk
0:04:24.6]} 21. g4 {[%clk 0:03:55.8]} 21... fxg4 {[%clk 0:04:17.7]} 22. hxg4
{[%clk 0:03:55.1]} 22... b5 {[%clk 0:04:14.8]} 23. a4 {[%clk 0:03:50.5]} 23...
a6 {[%clk 0:04:12.8]} 24. axb5 {[%clk 0:03:48.8]} 24... cxb5 {[%clk 0:04:11.5]}
25. Nf1 {[%clk 0:03:36.5]} 25... Kf7 {[%clk 0:04:09.2]} 26. Ne3 {[%clk
0:03:35.4]} 26... Nxe3 {[%clk 0:04:07.8]} 27. Bxe6+ {[%clk 0:03:33.9]} 27...
Kxe6 {[%clk 0:04:07.7]} 28. Bxe3 {[%clk 0:03:33.2]} 28... Rd3 {[%clk 0:04:05.5]}
29. Bd4 {[%clk 0:03:28.9]} 29... Rxd4 {[%clk 0:04:04.5]} 30. cxd4 {[%clk
0:03:27.6]} 30... Kd5 {[%clk 0:04:03.9]} 31. Ke2 {[%clk 0:03:27.2]} 31... Kxd4
{[%clk 0:04:03.2]} 32. Kd2 {[%clk 0:03:25.9]} 32... b4 {[%clk 0:04:02.4]} 33. g5
{[%clk 0:03:23.7]} 33... e3+ {[%clk 0:04:01.2]} 34. Ke2 {[%clk 0:03:22.6]} 34...
b3 {[%clk 0:04:00.1]} 35. Kd1 {[%clk 0:03:21.2]} 35... b2 {[%clk 0:03:57.6]} 36.
Kc2 {[%clk 0:03:20.4]} 36... e2 {[%clk 0:03:56.7]} 37. Kxb2 {[%clk 0:03:19.6]}
37... e1=Q {[%clk 0:03:56]} 38. Kc2 {[%clk 0:03:19.4]} 38... Qg3 {[%clk
0:03:55.3]} 39. Kd2 {[%clk 0:03:18.1]} 39... Qxg5+ {[%clk 0:03:54.2]} 40. Ke2
{[%clk 0:03:17]} 40... h5 {[%clk 0:03:54.1]} 41. Kf2 {[%clk 0:03:15.9]} 41... h4
{[%clk 0:03:54]} 42. Kf3 {[%clk 0:03:14.3]} 42... h3 {[%clk 0:03:53.9]} 43. Ke2
{[%clk 0:03:13.2]} 43... h2 {[%clk 0:03:53.8]} 44. Kf3 {[%clk 0:03:11.1]} 44...
h1=Q+ {[%clk 0:03:52]} 45. Ke2 {[%clk 0:03:09.1]} 45... Qgg2# {[%clk 0:03:50.8]}
0-1

[Event "Live Chess"]
[Site "Chess.com"]
[Date "2023.05.21"]
[Round "-"]
[White "ViktorTheCoolBoy"]
[Black "BostonStrangler"]
[Result "1-0"]
[WhiteElo "2502"]
[BlackElo "2075"]
[TimeControl "300"]
[EndTime "20:37:43 PDT"]
[Termination "ViktorTheCoolBoy won on time"]

1. d4 {[%clk 0:04:58.8]} 1... Nf6 {[%clk 0:04:58.6]} 2. Nf3 {[%clk 0:04:57.4]}
2... g6 {[%clk 0:04:55.9]} 3. Nbd2 {[%clk 0:04:55.5]} 3... d6 {[%clk 0:04:49.3]}
4. e4 {[%clk 0:04:53.6]} 4... Bg7 {[%clk 0:04:48.6]} 5. Bd3 {[%clk 0:04:52.5]}
5... O-O {[%clk 0:04:47.5]} 6. O-O {[%clk 0:04:52.1]} 6... Nc6 {[%clk
0:04:44.2]} 7. Re1 {[%clk 0:04:50.4]} 7... e5 {[%clk 0:04:42.9]} 8. c3 {[%clk
0:04:49.3]} 8... Bg4 {[%clk 0:04:39.8]} 9. h3 {[%clk 0:04:47.7]} 9... Bd7 {[%clk
0:04:38.6]} 10. Nb3 {[%clk 0:04:46.1]} 10... b6 {[%clk 0:04:32.9]} 11. a4 {[%clk
0:04:44.1]} 11... h6 {[%clk 0:04:29.2]} 12. a5 {[%clk 0:04:37.8]} 12... Qe7
{[%clk 0:04:25.8]} 13. Qc2 {[%clk 0:04:28.4]} 13... Nh5 {[%clk 0:04:22.8]} 14.
Be3 {[%clk 0:04:15.3]} 14... exd4 {[%clk 0:04:14.6]} 15. Nfxd4 {[%clk
0:04:13.7]} 15... Ne5 {[%clk 0:04:08.2]} 16. Bf1 {[%clk 0:04:11.9]} 16... c5
{[%clk 0:04:03.5]} 17. Ne2 {[%clk 0:04:03.7]} 17... Bxh3 {[%clk 0:04:01.5]} 18.
gxh3 {[%clk 0:03:59]} 18... Nf3+ {[%clk 0:03:59.9]} 19. Kg2 {[%clk 0:03:58.6]}
19... Qf6 {[%clk 0:03:16.6]} 20. Ng3 {[%clk 0:03:52.5]} 20... Nh4+ {[%clk
0:03:00.2]} 21. Kh2 {[%clk 0:03:47.8]} 21... Nf3+ {[%clk 0:02:57.4]} 22. Kh1
{[%clk 0:03:45.9]} 22... Nxe1 {[%clk 0:02:43.1]} 23. Rxe1 {[%clk 0:03:42.5]}
23... Qf3+ {[%clk 0:02:22.1]} 24. Kh2 {[%clk 0:03:37.7]} 24... Be5 {[%clk
0:02:13.8]} 25. Qe2 {[%clk 0:03:29.1]} 25... Bxg3+ {[%clk 0:02:08]} 26. fxg3
{[%clk 0:03:28.2]} 26... Qxg3+ {[%clk 0:02:06.9]} 27. Kh1 {[%clk 0:03:27.4]}
27... Nf4 {[%clk 0:02:00.8]} 28. Qf2 {[%clk 0:03:22.1]} 28... Qxf2 {[%clk
0:01:53.6]} 29. Bxf2 {[%clk 0:03:22]} 29... bxa5 {[%clk 0:01:51.7]} 30. Nxa5
{[%clk 0:03:19.5]} 30... Rab8 {[%clk 0:01:49.6]} 31. Nc4 {[%clk 0:03:18.1]}
31... Rfe8 {[%clk 0:01:40]} 32. Bg3 {[%clk 0:03:14.8]} 32... g5 {[%clk
0:01:36.3]} 33. Nxd6 {[%clk 0:03:12]} 33... Re6 {[%clk 0:01:26.2]} 34. Nc4
{[%clk 0:03:09.6]} 34... Ra6 {[%clk 0:01:23.2]} 35. Bxf4 {[%clk 0:03:05.6]}
35... gxf4 {[%clk 0:01:21.8]} 36. Kg2 {[%clk 0:03:01.4]} 36... Rf6 {[%clk
0:01:10.3]} 37. Kf3 {[%clk 0:02:59.9]} 37... Kf8 {[%clk 0:01:00.6]} 38. Ra1
{[%clk 0:02:57.6]} 38... Rb7 {[%clk 0:00:58.7]} 39. e5 {[%clk 0:02:51]} 39...
Rg6 {[%clk 0:00:51.2]} 40. Kxf4 {[%clk 0:02:49.3]} 40... Rg1 {[%clk 0:00:50]}
41. Kf3 {[%clk 0:02:46.7]} 41... f6 {[%clk 0:00:45]} 42. Kf2 {[%clk 0:02:44.3]}
42... Rg5 {[%clk 0:00:36.4]} 43. Bg2 {[%clk 0:02:39.8]} 43... Rc7 {[%clk
0:00:28.9]} 44. exf6 {[%clk 0:02:37.2]} 44... Rf5+ {[%clk 0:00:27.5]} 45. Kg3
{[%clk 0:02:35.6]} 45... Rxf6 {[%clk 0:00:26.4]} 46. Rd1 {[%clk 0:02:33.6]}
46... Rg7+ {[%clk 0:00:24.8]} 47. Kh2 {[%clk 0:02:31.5]} 47... Rf2 {[%clk
0:00:23.5]} 48. Rd2 {[%clk 0:02:30.9]} 48... Rxd2 {[%clk 0:00:21.9]} 49. Nxd2
{[%clk 0:02:29.1]} 49... Ke7 {[%clk 0:00:19.9]} 50. Ne4 {[%clk 0:02:24]} 50...
c4 {[%clk 0:00:17.2]} 51. Bf1 {[%clk 0:02:23]} 51... Ke6 {[%clk 0:00:13.6]} 52.
Bxc4+ {[%clk 0:02:20.8]} 52... Ke5 {[%clk 0:00:13]} 53. Ng3 {[%clk 0:02:18.8]}
53... Rb7 {[%clk 0:00:09.2]} 54. b3 {[%clk 0:02:16.7]} 54... Kf4 {[%clk
0:00:07.2]} 55. Ne2+ {[%clk 0:02:12.7]} 55... Ke3 {[%clk 0:00:05.5]} 56. Kg3
{[%clk 0:02:09.8]} 56... Rg7+ {[%clk 0:00:04]} 57. Kh4 {[%clk 0:02:08.9]} 57...
a5 {[%clk 0:00:01]} 58. Kh5 {[%clk 0:02:07.2]} 1-0

[Event "Live Chess"]
[Site "Chess.com"]
[Date "2023.05.21"]
[Round "-"]
[White "worldchessleaguelive"]
[Black "Singapourfeuj"]
[Result "0-1"]
[WhiteElo "1343"]
[BlackElo "2148"]
[TimeControl "300"]
[EndTime "20:37:59 PDT"]
[Termination "Singapourfeuj won by resignation"]

1. d4 {[%clk 0:04:58.9]} 1... Nf6 {[%clk 0:04:58.8]} 2. Bf4 {[%clk 0:04:57.2]}
2... g6 {[%clk 0:04:57.8]} 3. Nf3 {[%clk 0:04:56.1]} 3... Bg7 {[%clk 0:04:57.1]}
4. e3 {[%clk 0:04:53.6]} 4... O-O {[%clk 0:04:55.8]} 5. Be2 {[%clk 0:04:52.4]}
5... d6 {[%clk 0:04:54.5]} 6. O-O {[%clk 0:04:52]} 6... Nh5 {[%clk 0:04:52.2]}
7. Bg3 {[%clk 0:04:50.7]} 7... Nxg3 {[%clk 0:04:51.2]} 8. hxg3 {[%clk
0:04:49.9]} 8... e5 {[%clk 0:04:49.8]} 9. c3 {[%clk 0:04:49.1]} 9... Nc6 {[%clk
0:04:48.4]} 10. Nbd2 {[%clk 0:04:47.7]} 10... Bd7 {[%clk 0:04:46.3]} 11. Bb5
{[%clk 0:04:42]} 11... a6 {[%clk 0:04:45]} 12. Bxc6 {[%clk 0:04:41.1]} 12...
Bxc6 {[%clk 0:04:44.1]} 13. dxe5 {[%clk 0:04:37.3]} 13... dxe5 {[%clk 0:04:43]}
14. Re1 {[%clk 0:04:34]} 14... Qe7 {[%clk 0:04:41.3]} 15. e4 {[%clk 0:04:30.3]}
15... Rad8 {[%clk 0:04:39.7]} 16. Qc2 {[%clk 0:04:28.9]} 16... Bh6 {[%clk
0:04:37.4]} 17. Rad1 {[%clk 0:04:25.2]} 17... Rd7 {[%clk 0:04:36.5]} 18. Nb3
{[%clk 0:04:21.4]} 18... Rfd8 {[%clk 0:04:34.1]} 19. Rxd7 {[%clk 0:04:17.9]}
19... Rxd7 {[%clk 0:04:33.3]} 20. Rd1 {[%clk 0:04:16.9]} 20... f6 {[%clk
0:04:32.2]} 21. Rxd7 {[%clk 0:04:11.6]} 21... Bxd7 {[%clk 0:04:28.3]} 22. Kf1
{[%clk 0:04:04.5]} 22... Be6 {[%clk 0:04:26]} 23. Ke2 {[%clk 0:04:02.9]} 23...
Bc4+ {[%clk 0:04:23.8]} 24. Ke1 {[%clk 0:04:00.7]} 24... Qd6 {[%clk 0:04:18.9]}
25. Nfd2 {[%clk 0:03:56.8]} 25... Be6 {[%clk 0:04:17.6]} 26. f3 {[%clk
0:03:51.5]} 26... b6 {[%clk 0:04:15.9]} 27. Nc1 {[%clk 0:03:42]} 27... a5 {[%clk
0:04:13.4]} 28. Nd3 {[%clk 0:03:40.3]} 28... c5 {[%clk 0:04:06.7]} 29. c4 {[%clk
0:03:37.7]} 29... Qd4 {[%clk 0:04:04.2]} 30. Kf1 {[%clk 0:03:23.8]} 30... Qe3
{[%clk 0:04:00.7]} 31. Nb3 {[%clk 0:02:40.3]} 31... a4 {[%clk 0:03:58.7]} 32.
Nbc1 {[%clk 0:02:38.2]} 32... Qd2 {[%clk 0:03:53.5]} 33. Qxd2 {[%clk 0:02:36.3]}
33... Bxd2 {[%clk 0:03:52.1]} 34. b3 {[%clk 0:02:28.5]} 34... a3 {[%clk
0:03:49.5]} 35. Ke2 {[%clk 0:02:25.8]} 35... Bc3 {[%clk 0:03:47.6]} 36. f4
{[%clk 0:02:15.5]} 36... Kf7 {[%clk 0:03:46.5]} 37. fxe5 {[%clk 0:02:10.9]}
37... Bg4+ {[%clk 0:03:44.3]} 38. Ke3 {[%clk 0:02:07.9]} 38... fxe5 {[%clk
0:03:43.3]} 39. Ne2 {[%clk 0:01:59.5]} 39... Ba1 {[%clk 0:03:33.6]} 40. Ng1
{[%clk 0:01:53]} 40... Bd1 {[%clk 0:03:30.9]} 41. Nf3 {[%clk 0:01:49.2]} 41...
Bd4+ {[%clk 0:03:28.1]} 42. Kd2 {[%clk 0:01:44.7]} 42... Bxb3 {[%clk 0:03:25.1]}
43. Ndxe5+ {[%clk 0:01:22.1]} 43... Ke6 {[%clk 0:03:20.3]} 44. Nc6 {[%clk
0:01:06.2]} 44... Bb2 {[%clk 0:03:09]} 45. Ne1 {[%clk 0:00:46.1]} 45... Bxc4
{[%clk 0:03:05.2]} 46. Nc2 {[%clk 0:00:36.5]} 46... Bxa2 {[%clk 0:03:03.2]} 47.
Nd8+ {[%clk 0:00:31.9]} 47... Kd7 {[%clk 0:03:01.1]} 48. Nb7 {[%clk 0:00:26.9]}
48... Kc7 {[%clk 0:03:00]} 49. e5 {[%clk 0:00:22.6]} 49... Kxb7 {[%clk
0:02:57.6]} 50. e6 {[%clk 0:00:21.9]} 50... Bxe6 {[%clk 0:02:56.1]} 51. Ne3
{[%clk 0:00:20.1]} 51... a2 {[%clk 0:02:54.4]} 52. Kc2 {[%clk 0:00:18.6]} 52...
a1=Q {[%clk 0:02:52.6]} 53. Kd3 {[%clk 0:00:15.6]} 53... Bf5+ {[%clk 0:02:50.5]}
54. Nxf5 {[%clk 0:00:14.4]} 54... gxf5 {[%clk 0:02:49.4]} 0-1

[Event "Live Chess"]
[Site "Chess.com"]
[Date "2023.05.21"]
[Round "-"]
[White "alanmike75"]
[Black "Long1968"]
[Result "1-0"]
[WhiteElo "1602"]
[BlackElo "1063"]
[TimeControl "300"]
[EndTime "20:38:22 PDT"]
[Termination "alanmike75 won on time"]

1. e4 {[%clk 0:04:58.5]} 1... e6 {[%clk 0:04:57.1]} 2. d4 {[%clk 0:04:57]} 2...
d5 {[%clk 0:04:55.8]} 3. e5 {[%clk 0:04:56.2]} 3... c5 {[%clk 0:04:53.5]} 4. c3
{[%clk 0:04:55]} 4... Nc6 {[%clk 0:04:46.9]} 5. Nf3 {[%clk 0:04:53.9]} 5... cxd4
{[%clk 0:04:44.2]} 6. cxd4 {[%clk 0:04:52.7]} 6... Qb6 {[%clk 0:04:41.6]} 7. Be2
{[%clk 0:04:51.3]} 7... Bb4+ {[%clk 0:04:37.9]} 8. Kf1 {[%clk 0:04:50.2]} 8...
Nge7 {[%clk 0:04:30.8]} 9. a3 {[%clk 0:04:48.5]} 9... Nxd4 {[%clk 0:04:01.9]}
10. Nxd4 {[%clk 0:04:43.5]} 10... Bc5 {[%clk 0:03:58.5]} 11. Be3 {[%clk
0:04:14.7]} 11... Nc6 {[%clk 0:03:33.3]} 12. Nxc6 {[%clk 0:04:11.4]} 12... Bxe3
{[%clk 0:03:23.4]} 13. fxe3 {[%clk 0:04:07.4]} 13... bxc6 {[%clk 0:03:15.8]} 14.
b4 {[%clk 0:04:00.2]} 14... Qxe3 {[%clk 0:03:10.1]} 15. Qc2 {[%clk 0:03:50]}
15... Bd7 {[%clk 0:02:48]} 16. Qc3 {[%clk 0:03:44.5]} 16... Qf4+ {[%clk
0:02:35.3]} 17. Bf3 {[%clk 0:03:38.8]} 17... O-O {[%clk 0:02:24.5]} 18. Nd2
{[%clk 0:03:35.5]} 18... f6 {[%clk 0:02:19.1]} 19. Re1 {[%clk 0:03:30]} 19... d4
{[%clk 0:02:02]} 20. Qd3 {[%clk 0:03:14]} 20... fxe5 {[%clk 0:01:58.5]} 21. Re4
{[%clk 0:03:00.9]} 21... Qf5 {[%clk 0:01:43]} 22. Qe2 {[%clk 0:02:54.4]} 22...
g5 {[%clk 0:01:28.8]} 23. Rxe5 {[%clk 0:02:51.7]} 23... d3 {[%clk 0:01:06.4]}
24. Qe4 {[%clk 0:02:41.3]} 24... Qf6 {[%clk 0:00:29.8]} 25. g4 {[%clk
0:02:21.6]} 25... c5 {[%clk 0:00:17]} 26. Rxc5 {[%clk 0:02:18.3]} 26... Qa1+
{[%clk 0:00:02.2]} 27. Kg2 {[%clk 0:02:15.8]} 1-0